fUST/lending_fUST_20240928
["ID","MTS","AMOUNT","RATE_DAILY","PERIOD"]
[339357620,1727471440773,-1587.546384,0.00019068,2]
[339357621,1727471440782,-1587.546384,0.00019068,2]
[339357622,1727471440792,-151.0,0.00019068,2]
[339357623,1727471440801,-500.0,0.00019073,2]
[339357624,1727471440811,-150.112233,0.000191,2]
[339357625,1727471440821,-150.112233,0.000191,2]
[339357626,1727471440830,-150.112235,0.000191,2]
[339357627,1727471440841,-150.112233,0.000191,2]
[339357628,1727471440854,-150.112233,0.000191,2]
[339357629,1727471440865,-150.112233,0.000191,2]
[339357630,1727471440875,-150.112233,0.000191,2]
[339357631,1727471440887,-1326.08849023,0.00019111,10]
[339357632,1727471440897,-549.09779925,0.00019115,3]
[339357641,1727471446595,-7496.52186686,0.00019063,2]
[339357642,1727471446606,-108297.83794075,0.00019115,3]
[339357643,1727471446616,-8237.84610518,0.00019115,3]
[339357644,1727471446626,-54423.4678702,0.00019137,3]
[339357645,1727471446636,-4118.92305259,0.00019137,3]
[339357646,1727471446646,-27400.99064859,0.00019147,2]
[339357647,1727471446655,-108846.93574,0.00019148,3]
[339357648,1727471446665,-8237.84610518,0.00019148,3]
[339357649,1727471446674,-500.0,0.00019154,2]
[339357650,1727471446683,-151.0,0.00019155,2]
[339357651,1727471446692,-151.0,0.00019155,2]
[339357652,1727471446702,-151.0,0.00019155,2]
[339357653,1727471446711,-151.0,0.00019155,2]
[339357654,1727471446720,-209.934445,0.00019155,2]
[339357655,1727471446730,-209.934445,0.00019155,2]
[339357656,1727471446739,-209.934445,0.00019155,2]
[339357657,1727471446749,-209.934445,0.00019155,2]
[339357658,1727471446758,-209.146017,0.00019155,2]
[339357659,1727471446767,-209.146017,0.00019155,2]
[339357660,1727471446777,-209.146017,0.00019155,2]
[339357661,1727471446786,-209.146017,0.00019155,2]
[339357662,1727471446795,-151.0,0.00019155,2]
[339357663,1727471446805,-151.0,0.00019155,2]
[339357664,1727471446814,-364.32699,0.00019155,2]
[339357665,1727471446824,-364.32699,0.00019155,2]
[339357666,1727471446960,-364.32699,0.00019155,2]
[339357667,1727471446970,-364.32699,0.00019155,2]
[339357668,1727471446979,-8237.84610518,0.00019157,3]
[339357669,1727471446988,-3000.0,0.00019157,2]
[339357670,1727471446997,-12356.7691578,0.00019158,3]
[339357671,1727471447007,-151.0,0.00019158,2]
[339357672,1727471447016,-151.0,0.00019158,2]
[339357673,1727471447025,-356.654146,0.00019158,2]
[339357674,1727471447034,-356.654146,0.00019158,2]
[339357675,1727471447043,-151.0,0.00019158,2]
[339357676,1727471447052,-151.0,0.00019158,2]
[339357677,1727471447061,-151.0,0.00019158,2]
[339357678,1727471447070,-151.0,0.00019158,2]
[339357679,1727471447079,-151.0,0.00019158,2]
[339357680,1727471447088,-151.0,0.00019158,2]
[339357681,1727471447098,-310.39487,0.00019158,2]
[339357682,1727471447107,-310.39487,0.00019158,2]
[339357683,1727471447117,-310.39487,0.00019158,2]
[339357684,1727471447126,-310.39487,0.00019158,2]
[339357685,1727471447135,-16475.6922104,0.00019158,3]
[339357686,1727471447145,-4118.92305259,0.00019167,3]
[339357687,1727471447154,-1968.670739,0.00019167,2]
[339357688,1727471447163,-1968.670739,0.00019167,2]
[339357689,1727471447172,-754.567005,0.00019167,2]
[339357690,1727471447181,-754.567005,0.00019167,2]
[339357691,1727471447190,-151.0,0.00019167,2]
[339357692,1727471447199,-151.0,0.00019167,2]
[339357693,1727471447208,-356.654146,0.00019167,2]
[339357694,1727471447218,-356.654146,0.00019167,2]
[339357695,1727471447227,-151.0,0.00019167,2]
[339357696,1727471447236,-151.0,0.00019167,2]
[339357697,1727471447245,-151.0,0.00019167,2]
[339357698,1727471447254,-151.0,0.00019167,2]
[339357699,1727471447263,-310.39487,0.00019167,2]
[339357700,1727471447273,-310.39487,0.00019167,2]
[339357701,1727471447281,-195.918373,0.00019168,2]
[339357702,1727471447291,-215.87298,0.00019168,2]
[339357703,1727471447300,-215.87298,0.00019168,2]
[339357704,1727471447309,-151.0,0.00019168,2]
[339357705,1727471447318,-151.0,0.00019168,2]
[339357706,1727471447327,-151.0,0.00019168,2]
[339357707,1727471447336,-151.0,0.00019168,2]
[339357708,1727471447346,-209.934445,0.00019168,2]
[339357709,1727471447355,-209.934445,0.00019168,2]
[339357710,1727471447364,-209.934445,0.00019168,2]
[339357711,1727471447374,-209.934445,0.00019168,2]
[339357712,1727471447383,-209.146017,0.00019168,2]
[339357713,1727471447393,-209.146017,0.00019168,2]
[339357714,1727471447403,-209.146017,0.00019168,2]
[339357715,1727471447412,-209.146017,0.00019168,2]
[339357716,1727471447421,-205.380671,0.00019168,2]
[339357717,1727471447430,-205.380671,0.00019168,2]
[339357718,1727471447439,-151.290419,0.00019168,2]
[339357719,1727471447448,-151.290419,0.00019168,2]
[339357720,1727471447457,-151.0,0.00019168,2]
[339357721,1727471447466,-151.0,0.00019168,2]
[339357722,1727471447475,-364.32699,0.00019168,2]
[339357723,1727471447484,-364.32699,0.00019168,2]
[339357724,1727471447493,-364.32699,0.00019168,2]
[339357725,1727471447502,-364.32699,0.00019168,2]
[339357726,1727471447512,-356.710457,0.00019168,2]
[339357727,1727471447521,-356.710457,0.00019168,2]
[339357728,1727471447530,-1587.546384,0.00019168,2]
[339357729,1727471447540,-1587.546384,0.00019168,2]
[339357730,1727471447549,-151.0,0.00019168,2]
[339357731,1727471447559,-534.368586,0.00019168,2]
[339357732,1727471447568,-534.368586,0.00019168,2]
[339357733,1727471447579,-151.0,0.00019168,2]
[339357734,1727471447589,-429.715684,0.00019168,2]
[339357735,1727471447598,-429.715684,0.00019168,2]
[339357736,1727471447609,-429.715684,0.00019168,2]
[339357737,1727471447618,-429.715684,0.00019168,2]
[339357738,1727471447630,-216.62548,0.00019168,2]
[339357739,1727471447641,-216.62548,0.00019168,2]
[339357740,1727471447651,-216.62548,0.00019168,2]
[339357741,1727471447661,-216.62548,0.00019168,2]
[339357742,1727471447670,-749.17232,0.00019168,2]
[339357743,1727471447679,-749.17232,0.00019168,2]
[339357744,1727471447688,-749.17232,0.00019168,2]
[339357745,1727471447697,-749.17232,0.00019168,2]
[339357746,1727471447707,-406.627394,0.00019168,2]
[339357747,1727471447718,-406.627394,0.00019168,2]
[339357748,1727471447728,-406.627394,0.00019168,2]
[339357749,1727471447738,-406.627394,0.00019168,2]
[339357750,1727471447748,-3769.729462,0.00019168,2]
[339357751,1727471447758,-3769.729462,0.00019168,2]
[339357752,1727471447767,-3769.729462,0.00019168,2]
[339357753,1727471447777,-3769.729462,0.00019168,2]
[339357754,1727471447787,-1012.469235,0.00019168,2]
[339357755,1727471447796,-1012.469235,0.00019168,2]
[339357756,1727471447806,-1012.469235,0.00019168,2]
[339357757,1727471447817,-1012.469235,0.00019168,2]
[339357758,1727471447827,-1968.670739,0.00019168,2]
[339357759,1727471447836,-1968.670739,0.00019168,2]
[339357760,1727471447846,-1968.670739,0.00019168,2]
[339357761,1727471447858,-1968.670739,0.00019168,2]
[339357762,1727471447868,-1968.670739,0.00019168,2]
[339357763,1727471447878,-1968.670739,0.00019168,2]
[339357764,1727471447889,-754.567005,0.00019168,2]
[339357765,1727471447899,-754.567005,0.00019168,2]
[339357766,1727471447909,-754.567005,0.00019168,2]
[339357767,1727471447921,-754.567005,0.00019168,2]
[339357768,1727471447936,-754.567005,0.00019168,2]
[339357769,1727471447946,-754.567005,0.00019168,2]
[339357770,1727471447955,-151.0,0.00019168,2]
[339357771,1727471447966,-151.0,0.00019168,2]
[339357772,1727471447977,-151.0,0.00019168,2]
[339357773,1727471447987,-151.0,0.00019168,2]
[339357774,1727471447998,-151.0,0.00019168,2]
[339357775,1727471448011,-151.0,0.00019168,2]
[339357776,1727471448022,-356.654146,0.00019168,2]
[339357777,1727471448031,-356.654146,0.00019168,2]
[339357778,1727471448040,-356.654146,0.00019168,2]
[339357779,1727471448050,-356.654146,0.00019168,2]
[339357780,1727471448059,-356.654146,0.00019168,2]
[339357781,1727471448068,-356.654146,0.00019168,2]
[339357782,1727471448077,-151.0,0.00019168,2]
[339357783,1727471448093,-151.0,0.00019168,2]
[339357784,1727471448107,-151.0,0.00019168,2]
[339357785,1727471448120,-151.0,0.00019168,2]
[339357786,1727471448133,-151.0,0.00019168,2]
[339357787,1727471448143,-267.030043,0.00019168,2]
[339357788,1727471448156,-151.0,0.00019168,2]
[339357789,1727471448168,-151.0,0.00019168,2]
[339357790,1727471448180,-151.0,0.00019168,2]
[339357791,1727471448193,-151.0,0.00019168,2]
[339357792,1727471448206,-151.0,0.00019168,2]
[339357793,1727471448218,-151.0,0.00019168,2]
[339357794,1727471448232,-310.39487,0.00019168,2]
[339357795,1727471448245,-310.39487,0.00019168,2]
[339357796,1727471448260,-310.39487,0.00019168,2]
[339357797,1727471448273,-310.39487,0.00019168,2]
[339357798,1727471448287,-8237.84610518,0.00019168,3]
[339357799,1727471448299,-500.0,0.00019173,2]
[339357800,1727471448311,-33415.37365532,0.00019177,2]
[339357801,1727471448324,-38502.0,0.00019177,2]
[339357802,1727471448336,-55829.04727589,0.00019178,2]
[339357803,1727471448350,-500.0,0.00019178,2]
[339357804,1727471448361,-218.69717751,0.00019178,2]
[339357805,1727471448371,-500.0,0.00019178,2]
[339357806,1727471448383,-630.12290026,0.00019178,2]
[339357807,1727471448393,-511.67284037,0.00019178,2]
[339357808,1727471448406,-500.0,0.00019178,2]
[339357809,1727471448419,-500.0,0.00019178,2]
[339357810,1727471448434,-615.87,0.00019178,2]
[339357811,1727471448446,-500.0,0.00019178,2]
[339357812,1727471448459,-500.0,0.00019178,2]
[339357813,1727471448472,-500.0,0.00019178,2]
[339357814,1727471448485,-500.0,0.00019178,2]
[339357815,1727471448496,-500.0,0.00019178,2]
[339357816,1727471448506,-500.0,0.00019178,2]
[339357817,1727471448517,-506.6433691,0.00019178,2]
[339357818,1727471448527,-500.0,0.00019178,2]
[339357819,1727471448539,-500.0,0.00019178,2]
[339357820,1727471448552,-500.0,0.00019178,2]
[339357821,1727471448565,-503.80014309,0.00019178,2]
[339357822,1727471448576,-151.65858076,0.00019178,2]
[339357823,1727471448586,-500.0,0.00019178,2]
[339357824,1727471448600,-514.90413926,0.00019178,2]
[339357825,1727471448614,-500.0,0.00019178,2]
[339357826,1727471448626,-500.0,0.00019178,2]
[339357827,1727471448637,-503.05146831,0.00019178,2]
[339357828,1727471448648,-501.95821522,0.00019178,2]
[339357829,1727471448660,-500.0,0.00019178,2]
[339357830,1727471448671,-500.0,0.00019178,2]
[339357831,1727471448682,-159.13,0.00019178,2]
[339357832,1727471448692,-500.0,0.00019178,2]
[339357833,1727471448703,-450.1043671,0.00019178,2]
[339357834,1727471448714,-500.0,0.00019178,2]
[339357835,1727471448725,-572.12605362,0.00019178,2]
[339357836,1727471448736,-500.0,0.00019178,2]
[339357837,1727471448748,-500.0,0.00019178,2]
[339357838,1727471448760,-504.77009013,0.00019178,2]
[339357839,1727471448771,-503.06558109,0.00019178,2]
[339357840,1727471448782,-1602.483352,0.00019178,2]
[339357841,1727471448794,-1602.483352,0.00019178,2]
[339357842,1727471448804,-611.24340488,0.00019178,2]
[339357843,1727471448814,-500.0,0.00019178,2]
[339357844,1727471448825,-500.0,0.00019178,2]
[339357845,1727471448836,-500.0,0.00019178,2]
[339357846,1727471448848,-500.0,0.00019178,2]
[339357847,1727471448859,-522.0485193,0.00019178,2]
[339357848,1727471448871,-496.53587225,0.00019178,2]
[339357849,1727471448881,-500.0,0.00019178,2]
[339357850,1727471448893,-505.47306469,0.00019178,2]
[339357851,1727471448904,-500.0,0.00019178,2]
[339357852,1727471448916,-500.0,0.00019178,2]
[339357853,1727471448930,-366.95472982,0.00019178,2]
[339357854,1727471448941,-500.0,0.00019178,2]
[339357855,1727471448952,-502.64573123,0.00019178,2]
[339357856,1727471448964,-509.92699727,0.00019178,2]
[339357857,1727471448975,-521.32446821,0.00019178,2]
[339357858,1727471448987,-514.90936483,0.00019178,2]
[339357859,1727471449000,-500.0,0.00019178,2]
[339357860,1727471449013,-500.0,0.00019178,2]
[339357861,1727471449026,-409.23853104,0.00019178,2]
[339357862,1727471449037,-500.0,0.00019178,2]
[339357863,1727471449047,-259.03490477,0.00019178,2]
[339357864,1727471449059,-503.00704642,0.00019178,2]
[339357865,1727471449071,-500.0,0.00019178,2]
[339357866,1727471449082,-204.07891707,0.00019178,2]
[339357867,1727471449094,-500.0,0.00019178,2]
[339357868,1727471449106,-500.0,0.00019178,2]
[339357869,1727471449117,-502.91876284,0.00019178,2]
[339357870,1727471449128,-500.0,0.00019178,2]
[339357871,1727471449139,-500.0,0.00019178,2]
[339357872,1727471449150,-500.0,0.00019178,2]
[339357873,1727471449161,-500.0,0.00019178,2]
[339357874,1727471449173,-151.0,0.00019178,2]
[339357875,1727471449185,-500.0,0.00019178,2]
[339357876,1727471449195,-507.57481586,0.00019178,2]
[339357877,1727471449207,-151.0,0.00019178,2]
[339357878,1727471449218,-151.0,0.00019178,2]
[339357879,1727471449232,-503.5768253,0.00019178,2]
[339357880,1727471449242,-155.48068,0.00019178,2]
[339357881,1727471449254,-500.0,0.00019178,2]
[339357882,1727471449265,-500.0,0.00019178,2]
[339357883,1727471449277,-503.99155192,0.00019178,2]
[339357884,1727471449288,-571.88,0.00019178,2]
[339357885,1727471449302,-500.0,0.00019178,2]
[339357886,1727471449313,-266.22467706,0.00019178,2]
[339357887,1727471449326,-500.0,0.00019178,2]
[339357888,1727471449339,-200.0,0.00019178,2]
[339357889,1727471449353,-1243.203715,0.00019178,2]
[339357890,1727471449364,-500.0,0.00019178,2]
[339357891,1727471449376,-500.0,0.00019178,2]
[339357892,1727471449387,-500.0,0.00019178,2]
[339357893,1727471449398,-1243.203715,0.00019178,2]
[339357894,1727471449409,-579.52,0.00019178,2]
[339357895,1727471449421,-490.0,0.00019178,2]
[339357896,1727471449432,-438.846381,0.00019178,2]
[339357897,1727471449442,-500.0,0.00019178,2]
[339357898,1727471449601,-500.0,0.00019178,2]
[339357899,1727471449613,-438.846381,0.00019178,2]
[339357900,1727471449622,-500.0,0.00019178,2]
[339357901,1727471449632,-646.25,0.00019178,2]
[339357902,1727471449642,-514.66813122,0.00019178,2]
[339357903,1727471449652,-500.0,0.00019178,2]
[339357904,1727471449661,-500.0,0.00019178,2]
[339357905,1727471449671,-816.38,0.00019178,2]
[339357906,1727471449681,-500.0,0.00019178,2]
[339357907,1727471449693,-1247.413607,0.00019178,2]
[339357908,1727471449703,-500.0,0.00019178,2]
[339357909,1727471449712,-500.0,0.00019178,2]
[339357910,1727471449721,-500.0,0.00019178,2]
[339357911,1727471449732,-500.0,0.00019178,2]
[339357912,1727471449743,-1247.413607,0.00019178,2]
[339357913,1727471449753,-368.64450648,0.00019178,2]
[339357914,1727471449763,-500.0,0.00019178,2]
[339357915,1727471449772,-500.0,0.00019178,2]
[339357916,1727471449781,-177.15040229,0.00019178,2]
[339357917,1727471449790,-183.24566,0.00019178,2]
[339357918,1727471449802,-183.24566,0.00019178,2]
[339357919,1727471449813,-500.0,0.00019178,2]
[339357920,1727471449823,-500.0,0.00019178,2]
[339357921,1727471449832,-190.936119,0.00019178,2]
[339357922,1727471449842,-500.0,0.00019178,2]
[339357923,1727471449861,-190.936119,0.00019178,2]
[339357924,1727471449870,-598.72589,0.00019178,2]
[339357925,1727471449879,-598.72589,0.00019178,2]
[339357926,1727471449890,-1144.878145,0.00019178,2]
[339357927,1727471449899,-551.79,0.00019178,2]
[339357928,1727471449908,-500.0,0.00019178,2]
[339357929,1727471449917,-1144.878145,0.00019178,2]
[339357930,1727471449927,-1968.670739,0.00019178,2]
[339357931,1727471449937,-1968.670739,0.00019178,2]
[339357932,1727471449946,-500.0,0.00019178,2]
[339357933,1727471449955,-754.567005,0.00019178,2]
[339357934,1727471449965,-754.567005,0.00019178,2]
[339357935,1727471449974,-500.0,0.00019178,2]
[339357936,1727471449983,-3312.470803,0.00019178,2]
[339357937,1727471449993,-3312.470803,0.00019178,2]
[339357938,1727471450004,-500.0,0.00019178,2]
[339357939,1727471450016,-1558.73,0.00019178,2]
[339357940,1727471450027,-151.0,0.00019178,2]
[339357941,1727471450037,-500.0,0.00019178,2]
[339357942,1727471450049,-500.0,0.00019178,2]
[339357943,1727471450058,-356.654146,0.00019178,2]
[339357944,1727471450068,-500.0,0.00019178,2]
[339357945,1727471450079,-356.654146,0.00019178,2]
[339357946,1727471450088,-259.09,0.00019178,2]
[339357947,1727471450101,-500.0,0.00019178,2]
[339357948,1727471450112,-500.0,0.00019178,2]
[339357949,1727471450123,-500.0,0.00019178,2]
[339357950,1727471450133,-500.0,0.00019178,2]
[339357951,1727471450142,-506.19,0.00019178,2]
[339357952,1727471450154,-709.61,0.00019178,2]
[339357953,1727471450165,-151.0,0.00019178,2]
[339357954,1727471450175,-151.0,0.00019178,2]
[339357955,1727471450186,-509.13465812,0.00019178,2]
[339357956,1727471450196,-500.0,0.00019178,2]
[339357957,1727471450206,-151.0,0.00019178,2]
[339357958,1727471450216,-487.13203202,0.00019178,2]
[339357959,1727471450228,-151.0,0.00019178,2]
[339357960,1727471450238,-525.11117407,0.00019178,2]
[339357961,1727471450248,-6692.1,0.00019178,2]
[339357962,1727471450258,-500.0,0.00019178,2]
[339357963,1727471450269,-310.39487,0.00019178,2]
[339357964,1727471450280,-500.0,0.00019178,2]
[339357965,1727471450290,-1049.02,0.00019178,2]
[339357966,1727471450300,-169.539806,0.00019178,2]
[339357967,1727471450311,-151.0,0.0001919,2]
[339357968,1727471450322,-1200.052562,0.0001919,2]
[339357969,1727471450333,-1200.052562,0.0001919,2]
[339357970,1727471450343,-1968.670739,0.0001919,2]
[339357971,1727471450353,-1968.670739,0.0001919,2]
[339357972,1727471450363,-754.567005,0.0001919,2]
[339357973,1727471450373,-754.567005,0.0001919,2]
[339357974,1727471450382,-151.0,0.0001919,2]
[339357975,1727471450391,-356.654146,0.0001919,2]
[339357976,1727471450400,-356.654146,0.0001919,2]
[339357977,1727471450411,-151.0,0.0001919,2]
[339357978,1727471450420,-151.0,0.0001919,2]
[339357979,1727471450431,-151.0,0.0001919,2]
[339357980,1727471450440,-310.39487,0.0001919,2]
[339357981,1727471450452,-205.380671,0.000192,2]
[339357982,1727471450461,-205.380671,0.000192,2]
[339357983,1727471450472,-151.290419,0.000192,2]
[339357984,1727471450483,-151.290419,0.000192,2]
[339357985,1727471450493,-150.112233,0.000192,2]
[339357986,1727471450504,-150.112233,0.000192,2]
[339357987,1727471450514,-150.112233,0.000192,2]
[339357988,1727471450523,-150.112233,0.000192,2]
[339357989,1727471450532,-150.112233,0.000192,2]
[339357990,1727471450542,-150.112233,0.000192,2]
[339357991,1727471450553,-356.710457,0.000192,2]
[339357992,1727471450563,-356.710457,0.000192,2]
[339357993,1727471450572,-1587.546384,0.000192,2]
[339357994,1727471450581,-1587.546384,0.000192,2]
[339357995,1727471450590,-151.0,0.000192,2]
[339357996,1727471450601,-429.715684,0.000192,2]
[339357997,1727471450610,-153.4899465,0.000192,2]
[339357998,1727471450620,-429.715684,0.000192,2]
[339357999,1727471450631,-216.62548,0.000192,2]
[339358000,1727471450642,-216.62548,0.000192,2]
[339358001,1727471450653,-749.17232,0.000192,2]
[339358002,1727471450665,-749.17232,0.000192,2]
[339358003,1727471450674,-406.627394,0.000192,2]
[339358004,1727471450684,-406.627394,0.000192,2]
[339358005,1727471450695,-3769.729462,0.000192,2]
[339358006,1727471450706,-3769.729462,0.000192,2]
[339358007,1727471450715,-150.112233,0.000192,2]
[339358008,1727471450726,-150.112233,0.000192,2]
[339358009,1727471450735,-150.112233,0.000192,2]
[339358010,1727471450744,-150.112233,0.000192,2]
[339358011,1727471450754,-150.112233,0.000192,2]
[339358012,1727471450763,-150.112233,0.000192,2]
[339358013,1727471450772,-1012.469235,0.000192,2]
[339358014,1727471450782,-1012.469235,0.000192,2]
[339358015,1727471450791,-598.72589,0.000192,2]
[339358016,1727471450799,-598.72589,0.000192,2]
[339358017,1727471450809,-1144.878145,0.000192,2]
[339358018,1727471450818,-1144.878145,0.000192,2]
[339358019,1727471450827,-150.112233,0.000192,2]
[339358020,1727471450837,-290.533577,0.000192,2]
[339358021,1727471450849,-151.0,0.000192,2]
[339358022,1727471450858,-8237.84610518,0.00019237,3]
[339358023,1727471450868,-1602.483352,0.00019247,2]
[339358024,1727471450878,-1602.483352,0.00019247,2]
[339358025,1727471450889,-151.0,0.00019247,2]
[339358026,1727471450899,-151.0,0.00019247,2]
[339358027,1727471450908,-151.0,0.00019247,2]
[339358028,1727471450918,-1243.203715,0.00019247,2]
[339358029,1727471450934,-1243.203715,0.00019247,2]
[339358030,1727471450943,-2000.0,0.00019247,2]
[339358031,1727471450953,-2000.0,0.00019247,2]
[339358032,1727471450963,-2000.0,0.00019247,2]
[339358033,1727471450973,-2000.0,0.00019247,2]
[339358034,1727471450982,-2000.0,0.00019247,2]
[339358035,1727471450991,-2000.0,0.00019247,2]
[339358036,1727471451001,-2000.0,0.00019247,2]
[339358037,1727471451013,-2000.0,0.00019247,2]
[339358038,1727471451022,-2000.0,0.00019247,2]
[339358039,1727471451031,-2000.0,0.00019247,2]
[339358040,1727471451041,-2000.0,0.00019247,2]
[339358041,1727471451050,-2000.0,0.00019247,2]
[339358042,1727471451059,-2000.0,0.00019247,2]
[339358043,1727471451068,-2000.0,0.00019247,2]
[339358044,1727471451077,-2000.0,0.00019247,2]
[339358045,1727471451086,-2000.0,0.00019247,2]
[339358046,1727471451095,-2000.0,0.00019247,2]
[339358047,1727471451104,-2000.0,0.00019247,2]
[339358048,1727471451114,-2000.0,0.00019247,2]
[339358049,1727471451124,-1758.911334,0.00019247,2]
[339358050,1727471451134,-438.846381,0.00019247,2]
[339358051,1727471451146,-438.846381,0.00019247,2]
[339358052,1727471451158,-1247.413607,0.00019247,2]
[339358053,1727471451168,-1247.413607,0.00019247,2]
[339358054,1727471451177,-183.24566,0.00019247,2]
[339358055,1727471451189,-183.24566,0.00019247,2]
[339358056,1727471451198,-190.936119,0.00019247,2]
[339358057,1727471451209,-190.936119,0.00019247,2]
[339358058,1727471451219,-3312.470803,0.00019247,2]
[339358059,1727471451230,-3312.470803,0.00019247,2]
[339358060,1727471451240,-534.368586,0.00019256,2]
[339358061,1727471451250,-534.368586,0.00019256,2]
[339358062,1727471451259,-276.277042,0.00019256,2]
[339358063,1727471451269,-429.715684,0.00019256,2]
[339358064,1727471451278,-429.715684,0.00019256,2]
[339358065,1727471451288,-216.62548,0.00019256,2]
[339358066,1727471451298,-216.62548,0.00019256,2]
[339358067,1727471451308,-749.17232,0.00019256,2]
[339358068,1727471451318,-749.17232,0.00019256,2]
[339358069,1727471451328,-406.627394,0.00019256,2]
[339358070,1727471451338,-406.627394,0.00019256,2]
[339358071,1727471451349,-1602.483352,0.00019256,2]
[339358072,1727471451358,-1602.483352,0.00019256,2]
[339358073,1727471451367,-3769.729462,0.00019256,2]
[339358074,1727471451376,-3769.729462,0.00019256,2]
[339358075,1727471451386,-151.0,0.00019256,2]
[339358076,1727471451396,-151.0,0.00019256,2]
[339358077,1727471451405,-1243.203715,0.00019256,2]
[339358078,1727471451415,-1243.203715,0.00019256,2]
[339358079,1727471451427,-151.0,0.00019256,2]
[339358080,1727471451437,-1200.052562,0.00019256,2]
[339358081,1727471451448,-1200.052562,0.00019256,2]
[339358082,1727471451458,-183.24566,0.00019256,2]
[339358083,1727471451467,-183.24566,0.00019256,2]
[339358084,1727471451478,-1012.469235,0.00019256,2]
[339358085,1727471451489,-1012.469235,0.00019256,2]
[339358086,1727471451500,-190.936119,0.00019256,2]
[339358087,1727471451511,-190.936119,0.00019256,2]
[339358088,1727471451520,-598.72589,0.00019256,2]
[339358089,1727471451530,-598.72589,0.00019256,2]
[339358090,1727471451543,-1144.878145,0.00019256,2]
[339358091,1727471451553,-1144.878145,0.00019256,2]
[339358092,1727471451564,-1968.670739,0.00019256,2]
[339358093,1727471451574,-1968.670739,0.00019256,2]
[339358094,1727471451585,-754.567005,0.00019256,2]
[339358095,1727471451596,-754.567005,0.00019256,2]
[339358096,1727471451608,-3312.470803,0.00019256,2]
[339358097,1727471451617,-3312.470803,0.00019256,2]
[339358098,1727471451628,-151.0,0.00019256,2]
[339358099,1727471451640,-356.654146,0.00019256,2]
[339358100,1727471451651,-356.654146,0.00019256,2]
[339358101,1727471451661,-151.0,0.00019256,2]
[339358102,1727471451671,-151.0,0.00019256,2]
[339358103,1727471451681,-151.0,0.00019256,2]
[339358104,1727471451691,-210.165745,0.00019256,2]
[339358105,1727471451703,-310.39487,0.00019256,2]
[339358106,1727471451715,-534.368586,0.00019257,2]
[339358107,1727471451724,-534.368586,0.00019257,2]
[339358108,1727471451734,-534.368586,0.00019257,2]
[339358109,1727471451743,-534.368586,0.00019257,2]
[339358110,1727471451752,-429.715684,0.00019257,2]
[339358111,1727471451762,-429.715684,0.00019257,2]
[339358112,1727471451772,-216.62548,0.00019257,2]
[339358113,1727471451781,-216.62548,0.00019257,2]
[339358114,1727471451792,-749.17232,0.00019257,2]
[339358115,1727471451803,-749.17232,0.00019257,2]
[339358116,1727471451812,-406.627394,0.00019257,2]
[339358117,1727471451821,-406.627394,0.00019257,2]
[339358118,1727471451832,-3769.729462,0.00019257,2]
[339358119,1727471451843,-3769.729462,0.00019257,2]
[339358120,1727471451855,-33225.63593426,0.00019257,2]
[339358121,1727471451867,-1012.469235,0.00019257,2]
[339358122,1727471451879,-1012.469235,0.00019257,2]
[339358123,1727471451890,-534.368586,0.00019267,2]
[339358124,1727471451901,-534.368586,0.00019267,2]
[339358125,1727471451912,-429.715684,0.00019267,2]
[339358126,1727471451923,-429.715684,0.00019267,2]
[339358127,1727471451935,-216.62548,0.00019267,2]